bitfinex-derivatives/quotes_ETHF0:USTF0_20250828
["timestamp","ask_amount","ask_price","bid_price","bid_amount"]
[1756411376054,0.40418,4453.2,4453.1,1.0336]
[1756411376449,0.40419,4453.0,4452.9,3.2078]
[1756411376650,0.40419,4453.0,4452.9,3.4638]
[1756411376950,0.40419,4453.0,4452.9,4.4974]
[1756411377150,1.01028,4454.0,4453.0,1.43779]
[1756411377151,1.40988,4454.0,4453.0,1.43779]
[1756411377364,0.40418,4453.2,4453.1,1.0336]
[1756411377651,0.40417,4453.3,4453.1,1.0336]
[1756411377845,0.40419,4453.0,4452.9,4.2414]
[1756411378051,0.40419,4453.0,4451.5,1.99724406]
[1756411378052,0.40423,4452.6,4452.4,1.0336]
[1756411378360,0.40421,4452.9,4452.6,1.0336]
[1756411378654,0.40419,4453.0,4452.6,0.40423]
[1756411378851,0.40421,4452.9,4452.5,0.256]
[1756411379054,0.40418,4453.1,4452.7,0.40422]
[1756411379254,0.4042,4453.0,4452.7,0.40422]
[1756411379454,0.4042,4453.0,4452.9,1.0336]
[1756411379658,0.40418,4453.2,4452.8,0.66021]
[1756411379954,0.3996,4453.2,4452.8,0.256]
[1756411380151,0.3996,4453.2,4452.9,1.0336]
[1756411380152,0.40419,4453.0,4452.9,1.0336]
[1756411380556,0.80379,4453.0,4452.9,1.2886]
[1756411380856,0.40419,4453.0,4452.9,1.2886]
[1756411381256,0.40419,4453.2,4452.9,0.255]
[1756411381451,0.40419,4453.2,4452.9,1.6928]
[1756411381652,0.40419,4453.2,4453.1,1.0336]
[1756411381947,3.2078,4453.7,4452.7,3.2078]
[1756411381948,0.40421,4452.9,4452.7,3.2078]
[1756411382153,0.40419,4453.1,4452.8,1.0336]
[1756411382352,0.40418,4453.2,4452.9,1.2886]
[1756411382558,3.2078,4453.7,4453.0,1.0336]
[1756411382757,0.18935036,4453.6,4453.0,1.0336]
[1756411382954,0.18935036,4453.5,4453.0,1.0336]
[1756411383257,0.18935036,4453.4,4452.9,0.255]
[1756411383450,0.18935036,4453.3,4453.2,1.0336]
[1756411383852,0.18935036,4453.3,4453.2,1.2886]
[1756411385351,0.18935036,4453.3,4453.2,2.013]
[1756411385554,1.04362,4452.8,4452.7,4.9658]
[1756411385855,1.04367,4452.3,4452.1,1.0336]
[1756411386058,0.40431,4451.8,4451.7,3.2078]
[1756411386355,0.95616036,4451.8,4451.7,4.4811]
[1756411386549,0.59366036,4451.8,4451.7,4.4811]
[1756411386951,0.59366036,4451.8,4451.7,4.2271]
[1756411387154,0.40435,4451.4,4451.3,1.0193]
[1756411387451,0.40435,4451.4,4451.3,1.2733]
[1756411387452,0.59370036,4451.4,4451.3,1.2733]
[1756411387647,0.59370036,4451.4,4451.3,1.0193]
[1756411387848,0.59370036,4451.4,4451.3,1.2733]
[1756411388051,0.59370036,4451.4,4451.3,1.0193]
[1756411388247,0.95620036,4451.4,4451.3,1.2733]
[1756411388452,0.95620036,4451.4,4451.3,1.0193]
[1756411388653,0.95620036,4451.4,4451.3,1.2733]
[1756411389052,0.59370036,4451.4,4451.3,1.2733]
[1756411389455,0.18935036,4451.4,4451.3,1.67766]
[1756411389651,3.2078,4452.1,4451.6,0.40432]
[1756411389958,0.1898365,4452.0,4451.7,1.2733]
[1756411390159,0.59416665,4451.9,4451.8,1.0193]
[1756411390858,3.39766665,4451.9,4451.8,1.0193]
[1756411391248,0.18702703,4451.9,4451.8,1.0193]
[1756411391452,0.40434,4451.5,4451.4,1.59216056]
[1756411391652,0.76685,4451.4,4451.2,1.59216056]
[1756411391852,0.76685,4451.4,4451.1,3.2078]
[1756411391853,0.40437,4451.2,4451.1,4.79996056]
[1756411392053,0.59134803,4451.2,4451.1,2.86546056]
[1756411392256,0.59134803,4451.2,4451.1,1.2733]
[1756411392557,0.18697803,4451.2,4451.1,1.2733]
[1756411392752,0.18692161,4451.2,4451.1,1.67767]
[1756411393653,0.40434,4451.6,4451.4,1.0193]
[1756411393857,0.40428,4452.2,4452.0,1.0193]
[1756411394061,0.40427,4452.3,4452.2,1.0193]
[1756411394254,0.59114076,4452.3,4452.2,1.2723]
[1756411394753,0.40431,4451.8,4451.7,1.0193]
[1756411394955,0.40431,4451.8,4451.7,1.2723]
[1756411395660,3.2078,4452.4,4451.9,0.40429]
[1756411395863,0.40428,4452.2,4452.1,1.0193]
[1756411396565,0.40429,4452.0,4451.9,1.0193]
[1756411396861,0.40434,4451.5,4451.4,2.628758]
[1756411397066,0.40434,4451.5,4451.4,2.881758]
[1756411397962,0.40434,4451.5,4451.4,3.307758]
[1756411398366,0.40434,4451.5,4451.4,3.560758]
[1756411398868,0.4043,4452.0,4451.9,1.6983]
[1756411399063,0.18683425,4452.0,4451.9,1.9513]
[1756411399263,0.18683425,4452.0,4451.9,1.6983]
[1756411399464,0.18683425,4452.0,4451.9,1.9503]
[1756411400562,0.18681984,4452.0,4451.9,1.9503]
[1756411403970,3.61206,4452.4,4452.3,1.6983]
[1756411404169,1.36558,4453.2,4452.3,1.6983]
[1756411404170,0.40425,4452.5,4452.3,2.35457]
[1756411404365,0.40425,4452.5,4452.4,1.6983]
[1756411404571,0.18690763,4452.5,4452.4,1.6983]
[1756411405269,0.18690763,4452.5,4452.4,3.30763088]
[1756411405464,0.40417,4453.4,4453.3,0.679]
[1756411405664,0.59126438,4453.4,4453.3,1.9493]
[1756411406273,0.40417,4453.4,4453.3,1.9493]
[1756411407075,0.59128789,4453.4,4453.3,1.9493]
[1756411407275,0.40412,4453.9,4453.8,0.679]
[1756411407480,3.79901732,4453.9,4453.8,1.9493]
[1756411407884,4.72231732,4453.9,4453.8,0.251]
[1756411408081,1.32746,4453.5,4453.4,1.0193]
[1756411408284,0.40417,4453.3,4453.2,1.60947396]
[1756411408483,0.40421,4452.9,4452.8,1.86047396]
[1756411408783,4.36730732,4452.9,4452.8,0.251]
[1756411409381,4.72240732,4452.9,4452.8,0.251]
[1756411410086,3.79910732,4452.9,4452.8,1.9493]
[1756411410674,3.61201,4452.9,4452.8,1.9493]
[1756411410884,3.79909193,4452.9,4452.8,1.9493]
[1756411411384,3.79912397,4452.9,4452.8,3.55927877]
[1756411412280,3.79912397,4452.9,4452.8,1.9493]
[1756411412579,3.39491397,4452.9,4452.8,1.9493]
[1756411412982,3.2078,4452.9,4452.8,1.9493]
[1756411413285,0.3551,4453.9,4453.8,1.6983]
[1756411413286,3.2078,4453.9,4453.8,1.6983]
[1756411413479,3.39489314,4453.9,4453.8,3.55866542]
[1756411413979,0.3551,4454.4,4453.8,3.55866542]
[1756411413980,3.2078,4454.4,4454.3,0.679]
[1756411414182,3.39488745,4454.4,4454.3,1.9493]
[1756411415386,4.31818745,4454.4,4454.3,1.2703]
[1756411415984,0.18708745,4454.4,4454.3,1.9493]
[1756411416686,0.18681525,4454.4,4454.3,1.9493]
[1756411417580,0.18675777,4454.4,4454.3,1.9493]
[1756411418778,3.2078,4454.9,4454.8,1.6434]
[1756411418979,3.2078,4454.9,4454.8,1.8944]
[1756411419180,3.2078,4454.9,4454.8,2.29844]
[1756411419487,3.2078,4455.4,4455.3,1.6434]
[1756411419682,3.79835127,4455.4,4455.3,1.8944]
[1756411419884,3.39437127,4455.4,4455.3,1.8944]
[1756411420986,3.2078,4455.4,4455.3,1.8944]
[1756411421293,3.61178,4455.4,4455.3,1.8944]
[1756411421788,0.40398,4455.4,4455.3,1.8944]
[1756411422789,0.40397,4455.6,4455.4,0.40398]
[1756411422989,0.40397,4455.6,4455.5,1.8944]
[1756411423187,0.40396,4455.7,4455.5,0.9332]
[1756411423486,0.40396,4455.7,4455.6,1.6434]
[1756411423683,1.25156,4455.7,4455.6,0.251]
[1756411423890,1.43590222,4455.7,4455.6,0.251]
[1756411424387,3.2078,4455.9,4455.8,1.6434]
[1756411428585,0.8476,4455.1,4455.0,2.57041814]
[1756411428796,0.40405,4454.7,4454.5,3.2078]
[1756411428990,0.40405,4454.7,4454.6,0.9332]
[1756411429392,0.40403,4454.9,4454.7,0.9612]
[1756411429684,0.40403,4454.9,4454.8,1.6434]
[1756411429886,0.40403,4454.9,4454.8,1.8944]
[1756411430186,0.92563,4454.9,4454.8,1.8944]
[1756411430691,4.54378,4455.4,4454.8,1.8944]
[1756411430692,0.40402,4455.1,4454.8,0.9332]
[1756411430884,3.5338,4455.4,4455.3,1.6434]
[1756411430885,3.2078,4455.4,4455.3,1.6434]
[1756411431085,0.40398,4455.5,4455.4,0.9612]
[1756411431287,0.40396,4455.7,4455.6,0.6822]
[1756411431485,0.40396,4455.7,4455.6,1.8944]
[1756411432385,0.40402,4455.0,4454.9,1.6434]
[1756411432592,0.40402,4455.0,4454.9,1.8944]
[1756411433191,0.40401,4455.2,4455.1,1.6434]
[1756411433391,0.40399,4455.4,4455.3,0.6822]
[1756411433583,0.40399,4455.4,4455.3,1.8944]
[1756411433990,0.40398,4455.5,4455.4,1.6434]
[1756411434187,0.40396,4455.7,4455.4,0.6822]
[1756411434386,0.40396,4455.7,4455.6,0.6822]
[1756411434691,0.326,4456.4,4455.7,0.9612]
[1756411434893,0.40392,4456.2,4456.1,1.6434]
[1756411435090,0.40392,4456.2,4456.1,1.8944]
[1756411435388,3.2078,4456.5,4456.2,0.9612]
[1756411435691,0.58837656,4456.4,4456.3,1.6434]
[1756411435891,1.43597656,4456.4,4456.3,1.8944]
[1756411436091,44.44809,4457.9,4456.3,1.8944]
[1756411436092,0.40384,4457.0,4456.4,0.40389]
[1756411436286,0.40384,4457.0,4456.9,0.6822]
[1756411436484,0.5883256,4457.0,4456.9,1.8944]
[1756411436888,0.1844856,4457.0,4456.9,1.8944]
[1756411437081,3.61163,4457.1,4456.9,1.8944]
[1756411437280,0.40383,4457.1,4457.0,0.9612]
[1756411437486,1.0096,4457.0,4456.2,0.6822]
[1756411437692,3.61167,4456.7,4456.5,0.9612]
[1756411437987,1.25147,4456.7,4456.6,0.251]
[1756411438185,0.40391,4456.2,4456.1,1.6434]
[1756411438383,0.40391,4456.2,4456.1,1.8944]
[1756411438581,0.92551,4456.2,4456.1,1.6434]
[1756411438793,0.92551,4456.2,4456.1,1.8934]
[1756411438983,0.8476,4456.2,4455.6,4.169]
[1756411439181,0.40395,4455.8,4455.7,1.8934]
[1756411440494,0.40395,4455.8,4455.7,1.6434]
[1756411440992,0.40395,4455.8,4455.7,1.8934]
[1756411441588,0.92555,4455.8,4455.7,1.8934]
[1756411441790,1.25155,4455.8,4455.7,1.8934]
[1756411442093,0.92555,4455.8,4455.7,1.8934]
[1756411442293,1.11017258,4455.8,4455.7,1.8934]
[1756411442496,1.11017258,4455.8,4455.7,42.4434]
[1756411442686,1.11017258,4455.8,4455.7,42.6934]
[1756411442892,0.58857258,4455.8,4455.7,42.6934]
[1756411443488,0.18462258,4455.8,4455.7,42.6934]
[1756411444495,0.40395,4455.9,4455.8,1.6434]
[1756411444697,0.58868016,4455.9,4455.8,1.6434]
[1756411445186,0.18473016,4455.9,4455.8,1.6434]
[1756411445592,3.2078,4456.3,4455.8,1.6434]
[1756411445593,3.2078,4456.3,4456.2,0.40391]
[1756411445794,3.2078,4456.9,4456.2,2.29731]
[1756411445998,0.326,4457.0,4456.8,0.6613]
[1756411446188,0.40384,4457.0,4456.9,42.3873]
[1756411446393,3.2078,4457.1,4456.9,42.3873]
[1756411446690,3.61163,4457.1,4457.0,1.5873]
[1756411447390,3.61163,4457.1,4457.0,42.3873]
[1756411447591,8.08643,4457.1,4457.0,40.8]
[1756411447886,8.08643,4457.1,4456.1,1.60921814]
[1756411447887,1.00972,4456.5,4456.1,1.60921814]
[1756411448084,1.165,4456.2,4456.1,0.926]
[1756411448291,1.56891,4456.2,4456.1,41.726]
[1756411448494,0.40391,4456.2,4456.1,43.58521814]
[1756411448694,0.40391,4456.2,4456.1,43.33521814]
[1756411448894,0.87871,4456.2,4456.1,43.33521814]
[1756411449102,0.87871,4456.2,4456.1,41.976]
[1756411449402,0.87871,4456.2,4456.1,41.726]
[1756411449601,0.87871,4456.2,4456.1,41.976]
[1756411450002,0.40391,4456.2,4456.1,41.976]
[1756411450197,0.40391,4456.2,4456.1,41.726]
[1756411450498,5.56891,4456.2,4456.1,0.25]
[1756411451096,5.56891,4456.2,4455.7,40.8]
[1756411451097,0.87875,4455.8,4455.7,40.8]
[1756411451296,0.87875,4455.8,4455.7,41.05]
[1756411453102,1.56895,4455.8,4455.7,0.25]
[1756411453504,1.09415,4455.8,4455.7,1.8373]
[1756411453704,0.40395,4455.8,4455.7,1.8373]
[1756411454294,0.40397,4455.6,4455.5,1.60921814]
[1756411454500,0.40397,4455.6,4455.5,0.6613]
[1756411454801,0.40397,4455.6,4455.5,2.52051814]
[1756411455006,0.40397,4455.6,4455.5,3.44651814]
[1756411455204,0.40395,4455.8,4455.7,1.5873]
[1756411455398,0.40395,4455.8,4455.7,1.8373]
[1756411457401,3.61174,4456.0,4455.9,1.5873]
[1756411457606,3.61174,4456.0,4455.9,1.8373]
[1756411458104,3.2078,4456.0,4455.9,3.44651814]
[1756411458306,3.2078,4456.5,4456.4,1.5873]
[1756411458604,0.40386,4456.9,4456.6,0.40387]
[1756411458803,0.40386,4456.9,4456.8,1.5873]
[1756411459002,3.6771,4457.5,4457.3,0.6613]
[1756411459306,4.08089,4457.5,4457.4,1.5873]
[1756411459607,3.61159,4457.5,4457.4,1.5873]
[1756411460106,1.09399,4457.5,4457.4,1.5873]
[1756411460406,1.1595,4457.4,4457.3,0.25]
[1756411460607,1.1595,4457.4,4457.3,1.8373]
[1756411460905,0.6902,4457.4,4457.3,1.8373]
[1756411461106,3.61159,4457.5,4457.3,0.9113]
[1756411461302,3.61159,4457.5,4457.4,1.5873]
[1756411462101,4.30179,4457.5,4457.4,1.5873]
[1756411462301,4.77109,4457.5,4457.4,1.5873]
[1756411462502,3.61159,4457.5,4457.4,1.5873]
[1756411462706,0.40379,4457.5,4457.4,1.9911]
[1756411462902,0.40379,4457.5,4457.4,1.5873]
[1756411463299,3.6771,4458.0,4457.5,0.926]
[1756411463504,3.6771,4458.0,4457.8,0.6613]
[1756411463703,4.77105,4458.0,4457.9,0.926]
[1756411463903,1.56328,4457.7,4457.6,1.8373]
[1756411464608,0.40382,4457.3,4457.2,1.5873]
[1756411464809,0.40382,4457.3,4457.2,1.8373]
[1756411466805,3.2078,4458.0,4457.4,1.5873]
[1756411467103,3.2078,4458.0,4457.9,1.5873]
[1756411467303,3.2078,4458.0,4457.9,1.8373]
[1756411467503,3.2078,4458.0,4457.9,3.44844946]
[1756411467705,0.40373,4458.2,4458.0,0.926]
[1756411467999,0.40373,4458.2,4458.1,1.5873]
[1756411468198,0.40373,4458.2,4458.1,1.8373]
[1756411469601,2.16884,4458.2,4457.9,0.926]
[1756411469811,1.09398,4457.7,4457.6,2.53714946]
[1756411470003,1.56328,4457.7,4457.6,3.44844946]
[1756411470197,1.56328,4457.7,4457.6,1.8373]
[1756411470599,1.56328,4457.7,4457.6,1.5873]
[1756411470908,0.6902,4457.4,4457.3,0.926]
[1756411471104,1.5633,4457.4,4457.3,1.176]
[1756411471508,0.40381,4457.3,4457.1,1.61114946]
[1756411471806,0.40381,4457.3,4457.2,1.8373]
[1756411474605,3.2078,4457.5,4457.4,0.926]
[1756411474806,3.2078,4457.5,4457.4,1.8373]
[1756411475114,0.40377,4457.8,4457.4,1.3151]
[1756411475312,0.40377,4457.8,4457.7,0.6613]
[1756411475508,1.09397,4457.8,4457.7,1.5873]
[1756411475712,0.4038,4457.4,4457.2,1.61114946]
[1756411475915,3.2078,4457.6,4457.3,0.9113]
[1756411476111,3.61159,4457.6,4457.3,1.31511]
[1756411476412,3.61159,4457.6,4457.5,0.653]
[1756411476608,3.61159,4457.6,4457.5,1.829]
[1756411479310,3.2078,4457.6,4457.5,2.23279]
[1756411479916,3.61158,4457.6,4457.5,1.829]
[1756411480110,3.61158,4457.6,4457.5,2.23279]
[1756411480314,3.2078,4457.6,4457.5,2.23279]
[1756411482214,3.2078,4457.6,4457.5,3.84393946]
[1756411483013,3.61158,4457.6,4457.5,3.84393946]
[1756411483213,4.73348,4457.6,4457.5,1.61114946]
[1756411483512,4.73348,4457.6,4455.8,1.00988]
[1756411483513,1.1219,4456.9,4456.8,1.61114946]
[1756411483709,1.52576,4456.8,4456.7,0.25]
[1756411483909,1.52576,4456.8,4456.1,2.53714946]
[1756411484210,1.52581,4456.2,4456.1,1.60907375]
[1756411484518,1.52581,4456.2,4456.1,0.249]
[1756411484716,1.08471,4456.2,4456.1,0.249]
[1756411485015,1.08471,4456.2,4456.1,1.175]
[1756411485518,1.52581,4456.2,4456.1,1.175]
[1756411486616,1.52581,4456.2,4456.1,1.828]
[1756411487012,1.52581,4456.2,4456.0,32.325]
[1756411487318,0.40395,4455.8,4455.7,2.26207375]
[1756411487516,0.4411,4456.3,4455.7,2.51107375]
[1756411487716,3.61169,4456.4,4456.3,0.653]
[1756411487918,3.61169,4456.4,4456.3,1.579]
[1756411488414,4.29249,4456.4,4456.3,1.579]
[1756411488614,4.73359,4456.4,4456.3,1.579]
[1756411492625,1.1219,4456.3,4456.2,0.249]
[1756411492917,0.40391,4456.2,4455.9,0.926]
[1756411493123,1.1219,4455.8,4455.7,0.926]
[1756411493324,1.52585,4455.8,4455.7,1.828]
[1756411493635,0.40395,4455.8,4455.7,1.828]
[1756411494222,1.08475,4455.8,4455.7,1.579]
[1756411494421,1.52585,4455.8,4455.7,1.828]
[1756411496523,1.52585,4455.8,4455.3,2.01306375]
[1756411496524,0.40398,4455.4,4455.3,2.01306375]
[1756411496724,0.40398,4455.4,4455.3,2.91506375]
[1756411497229,0.40398,4455.4,4455.3,3.43707375]
[1756411497622,0.40398,4455.4,4455.3,3.84106375]
[1756411498126,0.40398,4455.4,4455.3,3.43707375]
[1756411499422,0.40398,4455.4,4455.3,3.84106375]
[1756411499622,3.61174,4455.9,4455.8,0.653]
[1756411499823,4.73364,4455.9,4455.8,1.828]
[1756411500030,4.73364,4455.9,4455.8,0.249]
[1756411500328,4.29254,4455.9,4455.8,1.828]
[1756411500523,4.73364,4455.9,4455.8,1.828]
[1756411501030,3.61174,4455.9,4455.8,1.828]
[1756411501530,4.73364,4455.9,4455.8,1.579]
[1756411501725,4.73364,4455.9,4455.8,1.175]
[1756411501931,4.73364,4455.9,4455.8,0.249]
[1756411502127,0.40398,4455.4,4455.3,1.60907375]
[1756411502331,1.52588,4455.4,4455.3,1.828]
[1756411503131,1.52588,4455.4,4455.3,1.579]
[1756411503331,1.52588,4455.4,4455.3,0.902]
[1756411503530,1.52588,4455.4,4455.3,1.828]
[1756411504127,1.52588,4455.4,4455.3,0.902]
[1756411504427,0.40401,4455.1,4455.0,1.579]
[1756411504632,1.52591,4455.1,4455.0,1.579]
[1756411504930,1.52591,4455.1,4455.0,1.828]
[1756411505133,0.84515,4454.7,4454.6,0.653]
[1756411505328,1.52595,4454.7,4454.6,0.902]
[1756411505631,1.52595,4454.7,4454.6,1.828]
[1756411506025,1.52595,4454.7,4454.6,1.579]
[1756411506229,1.46078,4454.3,4454.2,1.5601]
[1756411506423,1.46078,4454.3,4454.2,0.249]
[1756411506821,0.40408,4454.4,4454.3,0.9023]
[1756411507028,1.05438,4454.4,4454.3,1.5601]
[1756411507220,1.05438,4454.4,4453.5,2.01170678]
[1756411507221,36.75886268,4454.4,4453.8,1.22471092]
[1756411507526,1.01063,4452.5,4451.8,0.10870617]
[1756411507723,0.40433,4451.6,4451.5,1.5601]
[1756411508126,0.60977135,4451.6,4451.5,1.5601]
[1756411508530,0.4044,4450.8,4450.7,4.7679]
[1756411508729,0.40438,4451.1,4450.7,4.0866]
[1756411508922,0.40438,4451.1,4451.0,0.6578]
[1756411509123,0.63588708,4451.1,4451.0,1.5601]
[1756411509433,3.2078,4452.2,4451.7,0.9023]
[1756411509627,0.40426,4452.4,4451.6,0.6578]
[1756411509628,1.01025,4454.2,4452.1,1.96438]
[1756411509827,3.61198,4453.2,4453.1,0.6578]
[1756411510132,3.43906598,4453.2,4453.1,1.5601]
[1756411510429,3.2078,4453.7,4453.6,0.6578]
[1756411510633,3.42574291,4453.7,4453.6,5.8091]
[1756411510828,0.21794291,4453.7,4453.6,5.8091]
[1756411511033,0.40411,4454.1,4453.6,5.8091]
[1756411511338,3.4568,4454.8,4453.9,1.5601]
[1756411511339,0.63498206,4454.0,4453.9,1.5601]
[1756411511630,0.23086206,4454.0,4453.9,1.5601]
[1756411511934,3.2078,4454.8,4454.7,1.5601]
[1756411512142,3.2078,4454.8,4454.7,1.8091]
[1756411512327,3.2078,4454.8,4454.7,1.5601]
[1756411512529,3.2078,4454.8,4454.7,1.8091]
[1756411513026,1.01014,4454.7,4453.5,0.9023]
[1756411513225,1.01014,4454.7,4453.4,3.2078]
[1756411513226,0.40413,4453.9,4453.8,1.5601]
[1756411514435,0.40413,4453.9,4453.8,1.8091]
[1756411514826,0.84763,4453.9,4453.8,1.5601]
[1756411515137,0.40422,4452.8,4452.4,0.40425]
[1756411515435,3.2078,4453.8,4453.3,0.9023]
[1756411515634,3.2078,4453.8,4453.6,0.9023]
[1756411515834,0.40413,4453.9,4453.7,0.9023]
[1756411516135,0.40413,4453.9,4453.8,1.1513]
[1756411518029,0.4041,4454.1,4453.8,0.249]
[1756411518228,1.25904,4455.1,4453.8,0.249]
[1756411518229,3.2078,4454.9,4453.9,0.9023]
[1756411518430,3.2078,4454.9,4454.6,0.9023]
[1756411518626,3.2078,4454.9,4454.8,0.9023]
[1756411519027,3.2078,4455.5,4455.4,0.40398]
[1756411519227,3.2078,4455.5,4455.4,1.55528]
[1756411519432,3.2078,4455.5,4455.4,1.1513]
[1756411520838,0.40397,4455.6,4455.5,0.9023]
[1756411521035,0.40397,4455.6,4455.4,0.249]
[1756411521036,0.40395,4455.8,4455.7,0.9023]
[1756411523338,0.40403,4454.9,4454.8,3.2078]
[1756411523540,0.40403,4454.9,4454.8,3.4568]
[1756411524041,0.40399,4455.3,4455.0,0.9023]
[1756411524241,0.61915693,4455.2,4455.0,0.9023]
[1756411524437,0.21514693,4455.1,4455.0,0.9023]
[1756411524939,0.40407,4454.4,4454.3,4.1101]
[1756411525139,0.40407,4454.4,4454.3,4.3581]
[1756411525337,0.40407,4454.4,4454.3,5.0159]
[1756411525732,0.61926893,4454.4,4454.3,5.0159]
[1756411525937,0.61926893,4454.4,4454.3,4.7679]
[1756411526140,0.61926893,4454.4,4454.3,1.8081]
[1756411526335,1.33996893,4454.4,4454.3,1.5601]
[1756411526641,1.33996893,4454.4,4453.8,1.5601]
[1756411526642,0.40412,4453.9,4453.8,1.5601]
[1756411526844,0.61931893,4453.9,4453.8,1.8081]
[1756411527037,0.61931893,4453.9,4453.8,1.5601]
[1756411527240,0.61931893,4453.9,4453.8,1.8081]
[1756411528740,0.89651893,4453.9,4453.8,1.8081]
[1756411530744,0.61931893,4453.9,4453.8,1.8081]
[1756411531644,1.06281893,4453.9,4453.8,1.8081]
[1756411531840,1.06281893,4453.9,4451.8,3.19433174]
[1756411531841,0.2772,4453.5,4452.9,0.9023]
[1756411532049,0.40423,4452.7,4452.6,0.9058]
[1756411532238,0.40426,4452.3,4452.2,3.8656]
[1756411532443,0.61952378,4452.3,4452.2,0.9058]
[1756411532642,0.61952378,4452.3,4452.2,1.8081]
[1756411534243,0.61949204,4452.3,4452.2,1.8081]
[1756411534447,0.61946358,4452.3,4452.2,1.8081]
[1756411534850,0.61945473,4452.3,4452.2,1.8081]
[1756411535546,0.21519473,4452.3,4452.2,1.8081]
[1756411535845,3.61202,4452.8,4452.7,1.5601]
[1756411536049,3.61202,4452.8,4452.7,1.8081]
[1756411537952,3.61202,4452.8,4452.7,1.5601]
[1756411538153,4.69742,4452.8,4452.7,1.8081]
[1756411538452,4.69742,4452.8,4452.7,0.248]
[1756411539359,4.69742,4452.8,4452.7,1.2128]
[1756411539559,3.61202,4452.8,4452.7,1.8165]
[1756411540860,4.69742,4452.8,4452.7,1.5685]
[1756411541065,4.69742,4452.8,4452.7,0.248]
[1756411541258,1.48966,4452.3,4452.2,1.5685]
[1756411541561,1.48966,4452.3,4451.8,33.3018]
[1756411541562,0.8707,4451.9,4451.8,33.3018]
[1756411541759,0.4043,4451.9,4451.8,33.5498]
[1756411542356,0.8707,4451.9,4451.8,33.5498]
[1756411542654,0.4043,4451.9,4451.8,33.5498]
[1756411544752,0.4043,4451.9,4451.8,33.3018]
[1756411544959,0.8707,4451.9,4451.8,33.5498]
[1756411545559,0.8707,4451.9,4450.8,0.9648]
[1756411545560,1.01087,4451.5,4450.8,0.9648]
[1756411545762,1.01094,4451.1,4450.7,0.248]
[1756411546061,0.40446,4450.1,4450.0,3.8315]
[1756411546257,0.40446,4450.1,4450.0,4.0795]
[1756411546456,0.40446,4450.1,4450.0,5.0443]
[1756411546658,3.2078,4450.9,4450.2,0.40445]
[1756411546853,0.40439,4450.9,4450.8,1.5685]
[1756411547065,0.40439,4450.9,4450.8,1.8165]
[1756411547362,3.2078,4451.4,4450.8,1.8165]
[1756411547363,0.40438,4451.0,4450.9,0.9648]
[1756411547558,0.40438,4451.0,4450.9,1.5685]
[1756411548458,0.40438,4451.0,4450.0,3.2278]
[1756411548459,0.40446,4450.1,4450.0,4.7963]
[1756411548666,0.40446,4450.1,4450.0,5.0443]
[1756411548863,3.2078,4450.9,4450.8,0.6037]
[1756411549065,3.61219,4450.9,4450.8,1.8165]
[1756411549867,3.61219,4450.9,4450.8,1.5685]
[1756411550262,3.61219,4450.9,4450.8,1.8165]
[1756411550463,0.40439,4451.0,4450.9,0.9648]
[1756411550665,0.40438,4451.1,4451.0,1.5685]
[1756411552061,1.02338,4451.1,4451.0,1.8165]
[1756411552563,1.89428,4451.1,4451.0,1.8165]
[1756411552863,0.40438,4451.1,4451.0,1.8165]
[1756411555965,3.2078,4451.4,4451.0,1.8165]
[1756411556171,3.2078,4451.4,4451.3,1.5685]
[1756411556859,3.61215,4451.4,4451.3,1.5685]
[1756411557265,3.61215,4451.4,4451.3,1.97286]
[1756411557963,0.40435,4451.4,4451.3,1.97286]
[1756411558366,3.2078,4451.9,4451.8,0.6037]
[1756411558665,3.6121,4451.9,4451.8,1.8165]
[1756411558864,3.6121,4451.9,4451.8,2.22081]
[1756411559069,3.6121,4451.9,4451.8,1.8165]
[1756411559668,3.2078,4451.9,4451.8,5.8165]
[1756411559871,0.40422,4452.8,4452.7,0.6037]
[1756411560167,0.40421,4453.0,4452.9,0.6037]
[1756411560371,0.40421,4453.0,4452.9,1.5685]
[1756411560572,3.2078,4453.1,4453.0,0.9648]
[1756411560873,3.2078,4453.1,4453.0,1.5685]
[1756411561074,0.40416,4453.5,4452.8,3.2078]
[1756411561372,3.2078,4453.6,4453.5,0.9648]
[1756411561572,3.2078,4453.6,4453.5,1.8165]
[1756411563075,0.40414,4453.7,4453.5,1.8165]
[1756411563267,0.40414,4453.7,4453.6,0.9648]
[1756411563463,4.0787,4454.4,4453.9,0.40411]
[1756411563669,4.6977,4454.4,4454.3,0.9648]
[1756411563876,4.0787,4455.0,4454.7,0.9648]
[1756411564174,4.48272,4455.0,4454.9,1.5685]
[1756411564374,5.10172,4455.0,4454.9,1.5685]
[1756411565567,3.2078,4455.0,4454.9,1.5685]
[1756411566074,3.8268,4455.0,4454.9,1.5685]
[1756411566276,4.6685,4455.0,4454.9,1.5685]
[1756411566978,1.85757,4454.5,4454.4,0.977]
[1756411567278,1.4535,4453.9,4453.8,3.2078]
[1756411567781,1.4535,4453.9,4453.8,3.4548]
[1756411567980,1.4535,4453.9,4453.8,0.247]
[1756411569470,0.40413,4453.8,4453.4,0.977]
[1756411569676,1.85769,4453.1,4453.0,0.977]
[1756411569977,1.85769,4453.1,4453.0,0.247]
[1756411570180,1.85769,4453.1,4453.0,1.8671]
[1756411570381,0.40419,4453.1,4453.0,1.8671]
[1756411570783,0.40419,4453.1,4453.0,1.6201]
[1756411570981,0.40419,4453.1,4453.0,1.8671]
[1756411571984,0.40417,4453.4,4453.3,1.6201]